bitfinex/quotes_ETHUSD_20260113
["timestamp","ask_amount","ask_price","bid_price","bid_amount"]
[1768345183837,0.375,3324.5,3323.3,10.93146901]
[1768345184133,3.38297112,3324.5,3323.3,10.93146901]
[1768345184537,6.39094875,3324.5,3323.3,10.93146901]
[1768345184708,1.62532133,3324.4,3323.3,10.93146901]
[1768345185036,3.01015209,3324.3,3323.3,10.93146901]
[1768345185537,3.01015209,3324.3,3323.4,9.24726568]
[1768345185711,0.002,3324.3,3323.4,9.24726568]
[1768345187529,0.002,3324.3,3323.5,9.24726568]
[1768345187730,0.002,3324.3,3323.7,9.24726568]
[1768345187928,0.002,3324.3,3323.9,9.24726568]
[1768345189237,0.002,3324.3,3323.8,0.386]
[1768345189924,0.002,3324.3,3323.8,12.64180964]
[1768345190125,0.002,3324.3,3323.9,0.386]
[1768345190323,0.002,3324.6,3323.9,10.7369146]
[1768345191439,0.002,3324.6,3323.9,13.74534652]
[1768345191734,9.86426458,3324.6,3323.9,4.49808084]
[1768345191946,9.86426458,3324.6,3323.9,0.386]
[1768345192158,0.002,3324.6,3323.9,9.63326568]
[1768345192310,0.002,3324.6,3323.9,12.64177977]
[1768345192510,1.8e-07,3324.6,3323.9,3.39451409]
[1768345193013,1.8e-07,3324.6,3324.0,9.63326568]
[1768345193213,1.8e-07,3324.6,3324.1,4.27246223]
[1768345193439,1.8e-07,3324.6,3324.2,9.24726568]
[1768345193813,9.86226458,3325.7,3324.2,9.24726568]
[1768345194112,9.86226458,3325.7,3324.3,0.386]
[1768345195261,3.00679535,3325.8,3324.5,9.24726568]
[1768345195441,3.00653797,3326.1,3324.7,9.24726568]
[1768345195442,9.86426458,3326.0,3324.7,9.24726568]
[1768345195742,12.87090767,3326.0,3324.9,9.24726568]
[1768345195924,3.00864309,3326.0,3324.9,9.24726568]
[1768345196663,6.01528618,3326.0,3324.9,9.24726568]
[1768345196943,0.60152862,3325.9,3324.9,9.24726568]
[1768345197145,0.002,3325.7,3324.9,9.24726568]
[1768345197446,0.002,3325.7,3325.0,9.24726568]
[1768345198431,0.002,3326.0,3325.0,9.24726568]
[1768345199043,0.002,3326.0,3325.0,9.76262564]
[1768345199240,3.0059819,3326.7,3325.7,9.24726568]
[1768345199438,3.0059819,3326.7,3325.7,9.63326568]
[1768345200250,0.002,3326.8,3325.8,9.24726568]
[1768345200476,0.002,3326.8,3326.0,9.24726568]
[1768345200654,0.002,3327.4,3326.8,9.24726568]
[1768345200981,3.00616593,3328.8,3326.7,9.63326568]
[1768345200982,3.00463194,3328.2,3326.7,9.63326568]
[1768345201156,3.00640736,3328.5,3326.9,9.24726568]
[1768345201358,0.002,3328.8,3327.7,9.24726568]
[1768345201537,0.002,3328.8,3327.2,3.00553017]
[1768345201538,9.12800759,3330.4,3328.6,9.24726568]
[1768345201738,0.18999999,3330.6,3329.3,9.24726568]
[1768345201960,6.00204068,3332.2,3330.4,9.24726568]
[1768345202267,6.00204068,3332.2,3328.8,14.5]
[1768345202268,3.00284028,3332.4,3330.6,9.24726568]
[1768345202481,0.002,3332.4,3331.8,9.24726568]
[1768345202778,0.002,3332.4,3330.7,1.8365876]
[1768345202779,0.002,3332.4,3331.5,9.63326568]
[1768345203131,3.00284093,3332.4,3331.2,9.24726568]
[1768345203267,3.00284093,3332.4,3331.1,0.386]
[1768345203467,0.6003627,3332.3,3331.1,9.63326568]
[1768345203667,3.00286319,3332.4,3331.1,9.63326568]
[1768345203870,0.002,3332.4,3331.1,9.63326568]
[1768345204070,0.002,3332.4,3331.5,9.24726568]
[1768345204273,0.002,3332.7,3332.2,9.24726568]
[1768345204772,0.22419818,3333.5,3332.8,9.24726568]
[1768345204974,9.61513966,3333.7,3332.3,0.89561346]
[1768345205161,1.56162998,3333.6,3331.8,9.38111323]
[1768345205362,0.002,3334.1,3332.2,9.38111323]
[1768345205872,0.002,3334.1,3332.4,9.38111323]
[1768345206074,0.002,3334.1,3332.6,9.38111323]
[1768345206641,0.002,3334.1,3332.1,0.386]
[1768345206642,0.002,3334.1,3332.8,9.38111323]
[1768345207250,0.002,3334.1,3333.7,9.38111323]
[1768345207455,0.375,3335.8,3333.8,9.38111323]
[1768345207650,3.15271943,3335.5,3333.8,9.38111323]
[1768345207850,2.99787261,3335.7,3333.8,9.38111323]
[1768345208151,2.99850952,3335.0,3333.8,9.38111323]
[1768345208478,0.375,3335.8,3333.8,9.38111323]
[1768345208648,9.68045663,3336.5,3333.8,9.38111323]
[1768345208848,10.05445663,3336.5,3334.5,9.38111323]
[1768345209071,5.99484442,3336.2,3334.5,9.38111323]
[1768345210293,2.99678922,3337.0,3334.5,9.38111323]
[1768345210450,0.41145879,3337.0,3334.9,9.38111323]
[1768345210652,2.99682296,3336.9,3335.3,9.38111323]
[1768345210954,2.99961502,3337.1,3335.6,9.38111323]
[1768345211288,0.003,3337.1,3336.0,9.38111323]
[1768345211455,0.003,3337.1,3336.1,9.76711323]
[1768345212193,5.99125276,3338.2,3337.1,9.38111323]
[1768345212365,5.98945854,3339.2,3337.3,9.38111323]
[1768345213370,2.99472927,3339.2,3337.3,9.38111323]
[1768345213686,12.60996793,3339.2,3337.3,9.38111323]
[1768345213888,12.60996793,3339.2,3337.4,2.012261]
[1768345214092,3.22322522,3339.1,3337.4,0.386]
[1768345214263,0.62178648,3339.0,3337.4,0.386]
[1768345214482,0.62178648,3339.0,3337.4,0.383]
[1768345214680,0.20788807,3339.5,3338.5,9.38111323]
[1768345214877,5.98551504,3341.4,3339.2,9.38111323]
[1768345215075,0.1560857,3340.6,3339.3,0.386]
[1768345215283,5.98551504,3341.4,3339.4,0.386]
[1768345215566,0.00171812,3341.5,3339.4,9.76711323]
[1768345216184,0.00171812,3341.5,3339.6,9.38111323]
[1768345216403,2.99105674,3343.3,3341.1,9.38111323]
[1768345216703,0.20035757,3343.9,3339.9,6.465726]
[1768345216704,10.61273401,3342.7,3339.9,0.386]
[1768345217001,1.0612734,3342.6,3339.9,0.386]
[1768345217183,0.40828681,3343.2,3340.0,5.476]
[1768345217376,11.96494268,3343.1,3340.0,8.46994965]
[1768345217678,14.95617835,3343.1,3340.2,9.26979259]
[1768345218209,2.9911462,3343.2,3340.2,9.26979259]
[1768345218411,5.9822924,3343.2,3341.0,9.26979259]
[1768345218705,4.54211297,3343.1,3340.2,8.609195]
[1768345218869,4.54211297,3343.1,3340.4,9.9]
[1768345219071,4.54211297,3343.1,3340.2,6.379295]
[1768345219298,8.74925326,3342.9,3340.4,5.0701]
[1768345219570,8.97478086,3342.7,3340.5,0.54551]
[1768345219797,8.97178087,3342.7,3340.5,0.54551]
[1768345219994,16.25143539,3342.7,3340.4,7.230352]
[1768345220516,8.70464134,3342.6,3340.2,0.385]
[1768345220973,8.70464134,3342.6,3340.2,9.65479259]
[1768345221515,11.96709048,3342.5,3340.2,9.65479259]
[1768345221667,11.96709048,3342.5,3340.2,10.62027185]
[1768345221668,2.06717318,3342.4,3340.2,10.62027185]
[1768345221872,8.66091719,3342.3,3340.2,1.35047926]
[1768345222077,0.373,3342.2,3339.9,9.26979259]
[1768345222301,0.373,3342.2,3340.1,9.26979259]
[1768345222494,0.373,3342.2,3340.2,0.385]
[1768345222808,0.373,3342.2,3340.3,0.385]
[1768345222809,8.79477099,3342.1,3340.3,0.385]
[1768345223130,8.79477099,3342.1,3339.9,12.16048]
[1768345223313,8.74925326,3341.7,3338.7,9.26979259]
[1768345223526,8.70464134,3341.4,3338.8,0.385]
[1768345224824,0.41041058,3341.3,3339.0,9.26979259]
[1768345225120,0.84178545,3341.2,3339.2,9.26979259]
[1768345225407,0.03741282,3341.1,3339.1,1.35047926]
[1768345225660,8.97934749,3341.0,3338.8,21.43027259]
[1768345225912,0.03741506,3340.9,3338.8,0.385]
[1768345226215,8.74925326,3340.7,3337.6,12.2659554]
[1768345226419,4.2880609,3340.5,3337.7,2.23715]
[1768345226616,4.2880609,3340.5,3337.6,9.65479259]
[1768345226825,8.70464134,3340.3,3337.7,10.53490345]
[1768345226980,4.3322267,3340.1,3337.7,10.53490345]
[1768345227318,9.03391719,3340.0,3337.7,10.53490345]
[1768345227533,8.61806315,3339.7,3336.7,2.979844]
[1768345227829,14.9709563,3339.8,3336.2,0.385]
[1768345227830,4.41793911,3339.1,3336.2,0.385]
[1768345227992,8.57606191,3338.9,3336.2,0.385]
[1768345228309,8.53489649,3338.3,3335.2,9.26979259]
[1768345228482,4.5002741,3338.1,3335.5,2.374]
[1768345228680,4.5002741,3338.1,3335.5,9.26979259]
[1768345229189,0.373,3338.0,3335.5,9.26979259]
[1768345229412,0.373,3338.0,3335.6,9.26979259]
[1768345229609,15.46680551,3337.9,3335.7,0.92697926]
[1768345230054,12.47090989,3337.9,3335.6,9.26979259]
[1768345230202,0.373,3337.8,3335.6,9.26979259]
[1768345230509,0.373,3337.7,3335.7,9.26979259]
[1768345230922,0.373,3337.6,3335.7,9.26979259]
[1768345231642,8.98876404,3337.5,3335.7,9.26979259]
[1768345231809,0.9361764,3337.4,3335.7,1.22678148]
[1768345232127,9.18147979,3337.4,3334.9,3.38358381]
[1768345232334,9.18147979,3337.4,3334.9,0.385]
[1768345232705,9.18147979,3337.4,3335.0,9.26979259]
[1768345232900,2.41590167,3337.3,3335.3,2.99820537]
[1768345233231,2.41590167,3337.3,3335.4,11.52894359]
[1768345233232,0.373,3337.2,3335.4,11.52894359]
[1768345233418,0.373,3337.2,3335.4,9.26979259]
[1768345233603,8.98984146,3337.1,3335.3,2.99820213]
[1768345233805,0.374,3337.0,3335.3,2.99820213]
[1768345234059,1.31038415,3336.9,3335.9,0.001]
[1768345235316,1.31038415,3336.9,3335.1,0.385]
[1768345235516,8.99064972,3336.8,3335.1,3.38340956]
[1768345235713,8.99064972,3336.8,3335.1,9.75733848]
[1768345235915,8.99064972,3336.8,3335.1,6.75892892]
[1768345236111,8.99064972,3336.8,3334.5,7.14392892]
[1768345236112,1.03010339,3336.7,3334.5,7.14392892]
[1768345236322,1.03010339,3336.7,3334.7,2.99877008]
[1768345236633,1.03010339,3336.7,3333.9,9.75841243]
[1768345236634,7.523898,3336.7,3333.9,9.75841243]
[1768345236836,7.523898,3336.7,3333.9,7.14392892]
[1768345237038,6.49379461,3336.5,3333.9,10.14339401]
[1768345237336,6.49379461,3336.3,3334.0,1.31430009]
[1768345237709,6.49379461,3336.1,3334.0,1.31430009]
[1768345237905,11.98968884,3336.2,3333.9,7.14392892]
[1768345237906,6.86779461,3336.0,3333.9,7.14392892]
[1768345238222,6.86779461,3336.0,3333.5,0.385]
[1768345239175,6.86779461,3336.0,3333.2,3.00004798]
[1768345239325,6.86779461,3336.0,3332.9,0.385]
[1768345239646,6.16275094,3335.2,3332.9,3.00037205]
[1768345239819,11.99292416,3335.3,3332.8,6.75892892]
[1768345239820,6.16275094,3335.0,3332.8,6.75892892]
[1768345240138,6.16275094,3335.0,3332.3,6.75892892]
[1768345240337,5.94020943,3334.8,3332.2,3.00097657]
[1768345240540,5.94020943,3334.7,3331.7,6.75892892]
[1768345240742,5.94020943,3334.7,3331.2,7.14392892]
[1768345241041,10.61273401,3334.8,3331.4,3.09767]
[1768345241042,5.94020943,3334.5,3331.4,3.09767]
[1768345241344,5.94020943,3333.9,3331.4,6.75892892]
[1768345241504,11.40227415,3334.5,3331.4,6.75892892]
[1768345241505,6.09420954,3333.8,3331.4,6.75892892]
[1768345241711,11.99868012,3333.7,3331.5,6.75892892]
[1768345242312,0.374,3333.6,3331.5,6.75892892]
[1768345242608,1.03010339,3333.5,3331.5,7.8064437]
[1768345242846,1.03010339,3333.5,3331.7,6.75892892]
[1768345243011,0.374,3333.4,3331.9,6.75892892]
[1768345243327,0.374,3334.0,3332.1,6.75892892]
[1768345243510,0.374,3333.9,3332.5,6.75892892]
[1768345243711,3.37351402,3333.9,3332.7,6.75892892]
[1768345243946,6.37302804,3333.9,3332.7,6.75892892]
[1768345244469,0.374,3333.8,3332.7,6.75892892]
[1768345244605,0.374,3333.8,3332.2,0.46794806]
[1768345244809,0.374,3333.7,3332.3,3.0009202]
[1768345245116,0.374,3333.6,3332.4,6.75892892]
[1768345245623,2.99967003,3333.7,3333.0,0.001]
[1768345245816,5.99934006,3333.7,3333.0,0.001]
[1768345246043,2.99967003,3333.7,3333.0,0.001]
[1768345246740,0.374,3333.6,3333.0,6.75992892]
[1768345247111,0.374,3333.6,3333.0,0.001]
[1768345247743,3.37378887,3333.6,3333.0,0.001]
[1768345247918,4.01112757,3333.6,3333.0,0.001]
[1768345248351,0.374,3333.5,3333.0,0.001]
[1768345248673,0.374,3333.6,3333.0,0.001]
[1768345248869,0.374,3333.7,3333.0,0.001]
[1768345249076,0.374,3333.7,3333.0,6.75992892]
[1768345250159,0.037497,3333.6,3333.0,6.75992892]
[1768345250757,0.374,3333.7,3333.0,6.75992892]
[1768345251167,0.41149587,3333.7,3333.0,6.75992892]
[1768345251569,0.374,3333.7,3333.0,6.75992892]
[1768345251982,0.374,3333.8,3333.0,6.75992892]
[1768345252549,2.99950529,3333.9,3333.0,6.75992892]
[1768345252751,0.41149475,3333.8,3333.0,6.75992892]
[1768345252952,0.374,3333.8,3333.0,0.001]
[1768345253264,0.41149475,3333.8,3333.0,0.001]
[1768345253864,5.99934006,3333.7,3333.0,0.001]
[1768345254166,0.037497,3333.6,3333.0,0.001]
[1768345254370,1.03889783,3333.6,3333.0,0.001]
[1768345254893,1.00140083,3333.6,3333.0,0.001]
[1768345255462,0.03749812,3333.5,3332.2,6.75892892]
[1768345255871,5.99988,3333.4,3332.2,6.75892892]
[1768345256086,0.03750037,3333.3,3331.6,6.75892892]
[1768345256414,0.03750037,3333.3,3331.3,1.01499289]
[1768345256415,1.27773204,3333.2,3331.3,0.71439289]
[1768345256582,0.03750262,3333.1,3331.1,6.75892892]
[1768345256912,0.90373204,3333.2,3331.6,6.75892892]
[1768345257071,0.374,3333.1,3331.6,6.75892892]
[1768345257410,0.90373204,3333.2,3331.7,6.75892892]
[1768345257707,0.374,3333.0,3331.7,6.75892892]
[1768345257909,0.374,3332.9,3331.7,6.75892892]
[1768345258300,0.374,3332.9,3331.5,6.75892892]
[1768345258473,0.374,3332.9,3332.5,0.001]
[1768345258671,0.374,3332.9,3331.5,6.75892892]
[1768345259104,6.00042002,3333.1,3331.6,6.75892892]
[1768345259406,1.06441521,3333.0,3331.6,6.75892892]
[1768345259873,6.0007801,3332.9,3331.6,6.75892892]
[1768345260270,3.00039005,3332.9,3331.6,6.75892892]
[1768345260470,6.0007801,3332.9,3331.6,6.75892892]
[1768345260777,6.0007801,3332.9,3331.1,9.76092834]
[1768345260977,6.0007801,3332.9,3331.1,6.75892892]
[1768345260978,0.374,3332.8,3331.1,6.75892892]
[1768345261300,0.63747801,3332.7,3331.2,3.0019173]
[1768345261533,0.63747801,3332.7,3331.0,3.00208805]
[1768345261685,7.13127262,3332.7,3330.8,5.60628022]
[1768345262003,6.00132028,3332.6,3331.0,3.00210147]
[1768345262213,1.31325929,3332.5,3331.0,3.00210147]
[1768345262585,1.31325929,3332.5,3331.1,6.75892892]
[1768345262769,3.63806438,3332.7,3331.1,6.75892892]
[1768345262770,2.99994,3333.4,3331.1,6.75892892]
[1768345262974,0.002,3333.5,3331.9,6.75892892]
[1768345263190,0.002,3333.5,3331.8,12.32048]
[1768345263191,0.375,3333.9,3333.0,6.75892892]
[1768345263730,3.37450848,3333.9,3332.1,6.75892892]
[1768345263907,3.3745041,3333.9,3332.4,3.00084023]
[1768345264106,3.3745041,3333.9,3332.5,1.27606594]
[1768345264426,0.375,3333.9,3332.5,8.03499486]
[1768345265722,3.37453626,3333.9,3332.5,8.03499486]
[1768345265894,0.375,3333.9,3332.8,6.85222564]
[1768345266219,0.375,3333.9,3332.8,3.85174557]
[1768345266825,3.37450029,3333.9,3332.8,3.85174557]
[1768345267318,0.375,3333.9,3332.8,3.85174557]
[1768345268029,3.37452661,3333.9,3332.7,3.00053946]
[1768345268194,3.37452661,3333.9,3332.8,0.33865395]
[1768345268998,0.375,3333.9,3332.8,0.33865395]
[1768345269299,2.99841084,3335.1,3333.3,3.85174557]
[1768345269601,0.375,3335.6,3333.5,3.85174557]
[1768345269801,0.375,3335.6,3333.7,3.85174557]
[1768345270003,0.375,3335.6,3333.6,0.386]
[1768345270004,0.375,3335.6,3334.1,3.85174557]
[1768345270336,0.375,3336.1,3334.3,3.85174557]
[1768345270492,0.002,3336.2,3334.5,3.85174557]
[1768345270909,2.99697305,3336.7,3335.1,3.85174557]
[1768345271243,2.99697305,3336.7,3335.2,4.23774557]
[1768345271442,0.63688653,3336.6,3335.2,4.23774557]
[1768345272047,0.375,3337.3,3335.6,3.85174557]
[1768345272239,0.375,3337.3,3335.8,3.85174557]
[1768345272753,3.96241686,3340.0,3337.6,3.85174557]
[1768345272907,3.49397103,3340.0,3337.8,12.16048]
[1768345273103,0.68628934,3339.9,3338.0,7.613801]
[1768345273307,0.68628934,3339.9,3338.0,4.8]
[1768345273524,3.99984425,3339.8,3337.9,1.63982256]
[1768345273724,3.96241686,3339.8,3337.7,0.386]
[1768345273925,3.96241686,3339.6,3337.3,0.386]
[1768345274127,3.96241686,3339.3,3337.3,0.386]
[1768345274334,3.96241686,3339.1,3337.3,0.386]
[1768345274507,0.03743635,3339.0,3337.3,0.386]
[1768345274710,4.77480218,3338.9,3337.3,0.386]
[1768345274912,0.81238532,3338.9,3337.3,3.38243018]
[1768345275121,5.98909982,3339.4,3337.3,6.37886442]
[1768345275416,3.96241686,3339.5,3337.3,13.22704423]
[1768345275610,2.99318363,3341.0,3337.3,13.22704423]
[1768345275611,2.99419126,3339.8,3337.5,12.16048]
[1768345275830,0.374,3339.7,3337.5,3.85174557]
[1768345276032,2.99437058,3339.6,3337.6,18.1528098]
[1768345276214,2.99437058,3339.6,3337.8,12.16048]
[1768345276215,3.6992557,3339.6,3337.8,12.16048]
[1768345276412,5.98694844,3340.6,3338.2,12.16048]
[1768345276636,0.374,3340.5,3338.5,3.85174557]
[1768345276956,0.374,3340.5,3337.7,2.59589804]
[1768345276957,0.374,3340.5,3338.7,0.16]
[1768345277114,0.03742066,3340.4,3338.7,0.16]
[1768345277315,3.59855369,3340.4,3338.6,0.385]
[1768345277527,0.77125537,3340.3,3338.6,0.385]
[1768345278051,0.39725537,3340.3,3338.6,0.385]
[1768345278246,2.99392233,3340.1,3338.7,2.99517776]
[1768345278480,3.59855369,3339.9,3337.6,2.99612719]
[1768345278684,0.03742514,3340.0,3335.5,12.16048]
[1768345278685,3.59855369,3339.6,3335.5,12.16048]
[1768345278891,3.59855369,3339.4,3336.3,2.99731324]
[1768345279049,3.59855369,3339.0,3335.7,8.024585]
[1768345279245,3.59855369,3338.8,3335.6,0.385]
[1768345279488,3.59855369,3338.8,3334.4,2.99898781]
[1768345279489,3.59855369,3338.6,3335.3,0.385]
[1768345279654,3.59855369,3338.4,3335.4,2.99806343]
[1768345279858,3.59855369,3338.2,3335.4,2.99806343]
[1768345280058,3.59855369,3338.0,3335.4,2.99806343]
[1768345280257,3.59855369,3337.8,3335.4,5.99620458]
[1768345280476,3.59855369,3337.6,3335.5,0.63812046]
[1768345280654,0.374,3337.5,3335.5,0.63812046]
[1768345281054,0.374,3337.4,3335.5,0.63812046]
[1768345281471,3.59855369,3337.6,3335.5,0.63812046]
[1768345281689,2.99652403,3337.2,3335.6,2.99796138]
[1768345281868,3.33357643,3337.2,3335.7,0.66341059]
[1768345282282,0.374,3337.1,3335.7,0.66341059]
[1768345282792,3.33357643,3337.2,3335.7,0.66341059]
[1768345282995,0.374,3337.1,3335.7,0.66341059]
[1768345283172,0.002,3336.9,3335.7,0.66341059]
[1768345283896,0.002,3336.9,3335.7,2.99786628]
[1768345284191,0.376,3336.9,3335.6,2.99792474]
[1768345284392,0.376,3336.9,3335.7,2.99785256]
[1768345285825,0.376,3336.9,3335.4,5.9962823]
[1768345286514,3.37280746,3336.9,3335.4,5.9962823]
[1768345286663,3.37280746,3336.9,3335.5,0.63812823]
[1768345286974,0.376,3336.9,3335.5,0.63812823]
[1768345287178,0.002,3336.9,3335.4,5.9962823]
[1768345287780,0.002,3336.9,3335.3,0.16]
[1768345288291,0.002,3336.9,3335.4,4.539515]
[1768345289065,0.376,3336.9,3335.4,4.539515]
[1768345289704,0.002,3336.9,3335.4,4.539515]
[1768345289869,0.002,3336.9,3335.5,6.46605402]
[1768345290271,3.60055369,3336.9,3335.5,2.99805126]
[1768345290573,0.002,3336.9,3335.5,2.99805126]
[1768345291074,0.002,3336.9,3335.5,5.99610252]
[1768345291985,0.002,3336.9,3335.4,5.9962823]
[1768345292395,0.002,3336.9,3335.0,3.38346513]
[1768345292396,3.60055369,3336.9,3335.0,0.385]
[1768345292605,3.59855369,3336.7,3335.3,2.99820731]
[1768345292987,3.63601585,3336.7,3335.1,0.16]
[1768345293169,3.63601585,3336.7,3335.1,2.99834109]
[1768345293371,3.59855369,3336.5,3335.0,0.385]
[1768345293578,0.374,3336.4,3334.6,0.16]
[1768345293889,5.99466474,3336.3,3334.7,3.003325]
[1768345294106,0.39752901,3336.6,3335.0,3.51193737]
[1768345294409,0.375,3336.7,3335.2,3.51193737]
[1768345294571,3.59855369,3337.6,3335.2,3.51193737]
[1768345294777,3.59855369,3337.6,3335.4,3.51193737]
[1768345295107,2.9964396,3337.3,3335.4,3.51193737]
[1768345295311,0.374,3337.0,3335.4,3.51193737]
[1768345295474,2.99629153,3337.5,3335.4,3.51193737]
[1768345295673,0.374,3337.4,3335.8,4.15203352]
[1768345295873,2.99600969,3337.8,3335.9,13.14510883]
[1768345296111,1e-08,3337.2,3336.1,4.15203352]
[1768345296311,0.002,3338.6,3337.2,4.15203352]
[1768345296608,0.002,3338.6,3337.4,2.871602]
[1768345296796,3.953693,3339.6,3337.4,4.15203352]
[1768345296995,2.99410161,3339.9,3337.6,4.15203352]
[1768345297218,1.36817321,3339.8,3337.8,4.15203352]
[1768345297421,0.99417321,3339.8,3337.8,4.15203352]
[1768345297614,0.374,3339.7,3337.9,0.385]
[1768345297810,2.99437058,3339.6,3338.0,5.99161174]
[1768345298000,0.374,3339.5,3338.0,5.99161174]
[1768345298202,3.953693,3339.3,3337.4,0.385]
[1768345298446,3.953693,3339.3,3335.4,2.99807237]
[1768345298447,3.953693,3339.1,3337.1,2.99653944]
[1768345298614,3.953693,3338.9,3337.0,2.99668943]
[1768345298818,3.953693,3338.7,3336.7,0.385]
[1768345299152,3.953693,3338.7,3337.4,2.99631712]
[1768345299455,0.47021014,3338.6,3337.4,2.99631712]
[1768345299610,0.47021014,3338.6,3337.3,2.9964114]
[1768345300312,3.42806678,3338.6,3336.8,5.99376648]
[1768345300507,0.374,3338.5,3336.8,5.99376648]
[1768345300707,0.374,3338.5,3336.8,8.99064972]
[1768345300923,0.77932006,3338.4,3336.8,10.34341804]
[1768345301156,3.953693,3338.2,3336.8,7.3465348]
[1768345301299,1.15332006,3338.4,3336.8,5.99376648]
[1768345301623,0.0374442,3338.3,3336.8,5.99376648]
[1768345302563,4.14883372,3338.4,3336.8,5.99376648]
[1768345302709,4.14877036,3338.4,3336.8,5.99376648]
[1768345303039,0.41487704,3338.3,3336.8,5.99376648]
[1768345303205,0.374,3338.2,3336.8,5.99376648]
[1768345303405,0.41487704,3338.3,3336.8,8.99064972]
[1768345303638,0.374,3338.4,3336.8,8.99064972]
[1768345303932,2.99520716,3338.7,3336.8,8.99064972]
[1768345304139,0.374,3338.6,3336.8,8.99064972]
[1768345304337,3.36933535,3338.6,3336.8,8.99064972]
[1768345304638,3.36933535,3338.6,3336.8,5.99376648]
[1768345304841,1.03182117,3338.5,3336.8,7.34654825]
[1768345305047,3.99113608,3338.4,3335.5,4.15203352]
[1768345305213,3.99113608,3338.4,3336.2,2.99736082]
[1768345305418,3.953693,3338.2,3336.4,2.99723052]
[1768345305716,3.953693,3338.0,3336.4,2.99723052]
[1768345305916,0.03744869,3337.9,3336.4,2.99723052]
[1768345306258,0.39911417,3337.8,3336.3,2.99729696]
[1768345306551,3.37007514,3337.7,3336.1,5.99494684]
[1768345306850,3.37007514,3337.7,3337.1,0.001]
[1768345307041,0.374,3337.6,3336.1,5.99494684]
[1768345307245,3.953693,3337.5,3336.1,5.99494684]
[1768345307450,3.953693,3337.3,3335.3,0.001]
[1768345307744,3.953693,3337.1,3335.3,0.001]
[1768345307945,3.953693,3336.9,3335.3,0.001]
[1768345308143,3.953693,3336.7,3335.3,0.001]
[1768345308325,3.953693,3336.5,3335.3,0.001]
[1768345308523,6.95085597,3336.5,3335.3,0.001]
[1768345308712,0.374,3336.4,3335.3,0.001]
[1768345309343,0.374,3336.3,3335.3,0.001]
[1768345309932,6.95085597,3336.5,3335.3,0.001]
[1768345310249,1.41110701,3336.4,3335.3,0.001]
[1768345310447,4.4083593,3336.4,3335.3,0.001]
[1768345311049,0.375,3336.3,3335.3,0.001]
[1768345311251,4.03436893,3336.4,3335.3,0.001]
[1768345311449,0.375,3336.2,3335.3,0.001]
[1768345311838,1.5110289,3336.2,3335.3,0.001]
[1768345312015,3.953693,3336.1,3335.3,0.001]
[1768345312220,0.375,3336.0,3335.3,0.001]
[1768345312621,3.953693,3336.1,3334.3,5.99821079]
[1768345312852,0.375,3336.0,3334.3,5.99821079]
[1768345313053,0.375,3336.0,3333.1,3.00114554]
[1768345313054,3.953693,3335.9,3333.1,3.00114554]
[1768345313364,3.953693,3335.7,3333.1,0.001]
[1768345313519,3.953693,3335.5,3333.1,0.001]
[1768345313849,3.953693,3335.3,3333.1,0.001]
[1768345314071,3.953693,3335.1,3333.1,0.001]
[1768345314219,3.953693,3334.9,3333.1,0.001]
[1768345314419,0.375,3334.8,3333.1,0.001]
[1768345314669,2.99823104,3335.3,3333.1,0.001]
[1768345314819,0.73751585,3335.3,3333.3,4.15203352]
[1768345315020,2.99769177,3335.9,3333.5,4.15203352]
[1768345315217,0.375,3335.8,3333.8,2.684515]
[1768345315951,0.375,3335.8,3333.8,2.066923]
[1768345316457,9.94899444,3336.0,3333.8,2.066923]
[1768345316754,3.37277593,3335.9,3334.0,2.064646]
[1768345316952,1.03241197,3335.8,3334.1,0.80636262]
[1768345317467,3.953693,3335.7,3333.7,2.99959904]
[1768345318029,3.953693,3335.7,3333.5,2.99983759]
[1768345318231,3.953693,3335.7,3333.7,2.99958843]
[1768345318461,3.953693,3335.5,3333.6,2.99974792]
[1768345318680,3.953693,3335.3,3333.1,0.001]
[1768345318972,3.953693,3334.3,3333.1,0.001]
[1768345319148,0.375,3334.2,3333.1,0.001]
[1768345319320,0.375,3334.2,3332.5,3.00073833]
[1768345319526,0.4328693,3334.1,3332.5,0.30007383]
[1768345319728,0.4328693,3334.1,3332.2,3.0010182]
[1768345319729,0.375,3334.0,3332.2,3.0010182]
[1768345319957,0.375,3334.0,3332.4,3.00077376]
[1768345320132,0.375,3334.0,3331.7,7.15342735]
[1768345320133,0.375,3334.0,3332.5,3.00074287]
[1768345320334,0.375,3333.9,3331.8,3.00131706]
[1768345320639,0.375,3333.9,3331.8,10.15473121]
[1768345320840,0.375,3333.9,3331.9,5.16750664]
[1768345321040,2.99951881,3333.9,3331.9,5.16750664]
[1768345321265,0.375,3333.8,3331.9,5.16750664]
[1768345321630,0.375,3333.8,3331.9,1.01547312]
[1768345322764,0.375,3333.8,3332.0,3.00120048]
[1768345322765,6.95336303,3333.7,3332.0,3.00120048]
[1768345323066,3.953693,3333.5,3332.1,0.40166736]
[1768345324862,3.953693,3333.5,3332.1,6.40380012]
[1768345325064,0.375,3333.4,3332.1,6.40380012]
[1768345325435,0.375,3333.3,3332.1,6.40380012]
[1768345326358,4.57748101,3333.9,3332.1,0.40166736]
[1768345326561,4.57748101,3333.7,3331.7,3.695]
[1768345326766,7.57721262,3333.7,3331.8,6.00276126]
[1768345326938,1.09517353,3333.6,3331.9,0.60027613]
[1768345327273,5.71015154,3333.6,3331.9,0.60027613]
[1768345327672,5.71015154,3333.6,3330.9,4.6207779]
[1768345327872,5.71015154,3333.6,3330.4,7.62337131]
[1768345328032,5.71015154,3333.6,3330.9,3.00216175]
[1768345328440,4.73748101,3332.7,3330.1,3.0028969]
[1768345328638,4.57748101,3332.5,3329.9,3.00305553]
[1768345328841,4.57748101,3332.1,3330.0,3.30330599]
[1768345329062,4.95248101,3332.0,3330.0,3.30330599]
[1768345329858,3.00102034,3332.2,3330.0,6.30630899]
[1768345330172,11.37093227,3333.3,3330.0,6.30630899]
[1768345330173,3.00003327,3333.3,3331.0,4.6207779]
[1768345330394,0.375,3333.2,3331.2,4.6207779]
[1768345330593,0.375,3333.1,3331.2,4.6207779]
[1768345330946,0.375,3333.1,3331.3,9.00549333]
[1768345331288,0.375,3333.0,3331.4,1.36262712]